Workbook

Sheet 商铺明细 (hidden)
A1: C24028-2常湾小区8间商铺三年租赁经营权项目明细表
A2: 序号 | B2: 门面 编号 | C2: 经营 项目 | D2: 分层 | E2: 面积㎡ | F2: 年租金（元） | G2: 3年租金（元） | H2: 年租金25%押金（元） | I2: 物业费 （元/月/㎡） | J2: 交易保证金（元） | K2: 原租赁截止时间
A3: 1 | B3: A6-A8 | C3: 餐饮 | D3: 一层 二层 | E3: 523.98 | F3: 210900 | G3: =F3*3 -> 632700 | H3: =F3*0.25 -> 52725 | I3: 1.2 | J3: 43000 | K3: 2023.12.31
A4: 2 | B4: B1-B3 -Wy1 | C4: 超市 | D4: 一层 二层 | E4: 789.14 | F4: 229260 | G4: =F4*3 -> 687780 | H4: =F4*0.25 -> 57315 | I4: 1.2 | J4: 46000 | K4: 2023.12.31
A5: 3 | B5: B15-B16 | C5: 餐饮 | D5: 一层 二层 | E5: 552 | F5: 113232 | G5: =F5*3 -> 339696 | H5: =F5*0.25 -> 28308 | I5: 1.2 | J5: 23000 | K5: 2023.12.31
A6: 合计（8间） | E6: =SUM(E3:E5) -> 1865.12 | F6: 553392 | G6: 1660176 | H6: 138348 | J6: =SUM(J3:J5) -> 112000
A7: 注：装修期及优先租赁权详见挂牌公告。
A8: C24028-3岑河小区二期（DF区）20间商铺三年租赁经营权项目明细表
A9: 序号 | B9: 门面号 | C9: 经营项目 | D9: 分层 | E9: 商铺面积（㎡） | F9: 价格（元） | G9: 年租金（元） | H9: 3年租金（元） | I9: 年租金25%押金（元） | J9: 物业费 （元/月/㎡） | K9: 交易保证金（元） | L9: 原租赁截止 时间
A10: 1 | B10: D7 | D10: 一层 | E10: 176.98 | F10: 15 | G10: 31856 | H10: =G10*3 -> 95568 | I10: =G10*0.25 -> 7964 | J10: 1.2 | K10: 6500
D11: 二层 | J11: 1.2
A12: 2 | B12: D8 | D12: 一层 | E12: 137.87 | F12: 15 | G12: 24817 | H12: 74451 | I12: 6204.25 | J12: 1.2 | K12: 5000
D13: 二层 | J13: 1.2
A14: 3 | B14: D9 | D14: 一层 | E14: 148.53 | F14: 15 | G14: 26735 | H14: 80205 | I14: 6683.75 | J14: 1.2 | K14: 5500
D15: 二层 | J15: 1.2
A16: 4 | B16: D10 | D16: 一层 | E16: 180.02 | F16: 15 | G16: 32404 | H16: =G16*3 -> 97212 | I16: =G16*0.25 -> 8101 | J16: 1.2 | K16: 6500
D17: 二层 | J17: 1.2
A18: 5 | B18: D11 | D18: 一层 | E18: 166.23 | F18: 15 | G18: 29921 | H18: 89763 | I18: 7480.25 | J18: 1.2 | K18: 6000
D19: 二层 | J19: 1.2
A20: 6 | B20: D12 | D20: 一层 | E20: 49.27 | F20: 25 | G20: 14781 | H20: 44343 | I20: 3695.25 | J20: 1.2 | K20: 3000
A21: 7 | B21: D13 | D21: 一层 | E21: 43.4 | F21: 25 | G21: 13020 | H21: 39060 | I21: 3255 | J21: 1.2 | K21: 3000
A22: 8 | B22: D14 | D22: 一层 | E22: 160.36 | F22: 15 | G22: 28865 | H22: 86595 | I22: 7216.25 | J22: 1.2 | K22: 6000
D23: 二层 | J23: 1.2
A24: 9 | B24: D15 | D24: 一层 | E24: 265.19 | F24: 15 | G24: 47734 | H24: =G24*3 -> 143202 | I24: =G24*0.25 -> 11933.5 | J24: 1.2 | K24: 9600
D25: 二层 | J25: 1.2
A26: 10 | B26: D17 | D26: 一层 | E26: 214.7 | F26: 15 | G26: 38646 | H26: 115938 | I26: 9661.5 | J26: 1.2 | K26: 8000
D27: 二层 | J27: 1.2
A28: 11 | B28: D20 | D28: 一层 | E28: 274.49 | F28: 15 | G28: 49408 | H28: 148224 | I28: 12352 | J28: 1.2 | K28: 10000
D29: 二层 | J29: 1.2
A30: 12 | B30: D21 | D30: 一层 | E30: 100 | F30: 25 | G30: 30000 | H30: =G30*3 -> 90000 | I30: =G30*0.25 -> 7500 | J30: 1.2 | K30: =G30*0.2 -> 6000
A31: 13 | B31: D22 | D31: 一层 | E31: 248.38 | F31: 15 | G31: 44708 | H31: 134124 | I31: 11177 | J31: 1.2 | K31: 9000
D32: 二层 | J32: 1.2
A33: 14 | B33: D23 | D33: 一层 | E33: 63.74 | F33: 25 | G33: 19122 | H33: 57366 | I33: 4780.5 | J33: 1.2 | K33: 4000
A34: 15 | B34: D24 | D34: 一层 | E34: 66.79 | F34: 25 | G34: 20037 | H34: 60111 | I34: 5009.25 | J34: 1.2 | K34: 4100
A35: 16 | B35: D25 | D35: 一层 | E35: 255.13 | F35: 15 | G35: 45923 | H35: 137769 | I35: 11480.75 | J35: 1.2 | K35: 9500
A36: 14 | D36: 二层 | J36: 1.2
A37: 17 | B37: D26 | D37: 一层 | E37: 100 | F37: 25 | G37: 30000 | H37: =G37*3 -> 90000 | I37: =G37*0.25 -> 7500 | J37: 1.2 | K37: =G37*0.2 -> 6000
A38: 18 | B38: D27 | D38: 一层 | E38: 273.99 | F38: 15 | G38: 49318 | H38: 147954 | I38: 12329.5 | J38: 1.2 | K38: 10000
D39: 二层 | J39: 1.2
A40: 19 | B40: D28 | D40: 一层 | E40: 169.7 | F40: 15 | G40: 30546 | H40: 91638 | I40: 7636.5 | J40: 1.2 | K40: 6200
D41: 二层 | J41: 1.2
A42: 20 | B42: 2F1 | C42: 餐饮 | D42: 一层 | E42: 1125 | F42: 8 | G42: 108000 | H42: =G42*3 -> 324000 | I42: =G42*0.25 -> 27000 | J42: 1.2 | K42: 22000 | L42: 2024.3.9
A43: 合计（20间） | E43: =SUM(E10:E42) -> 4219.77 | G43: 715841 | H43: 2147523 | K43: =SUM(K10:K42) -> 145900
A44: 注：装修期及优先租赁权详见挂牌公告。
A45: C24028-4红光小区6间商铺三年租赁经营权项目明细表
A46: 序号 | B46: 门面 编号 | C46: 经营项目 | D46: 分层 | E46: 面积㎡ | F46: 均价 | G46: 年租金 | H46: 3年租金（元） | I46: 年租金25%押金（元） | J46: 物业费 （元/月/㎡） | K46: 交易保证金（元）
A47: 1 | B47: 2B1 | D47: 二层 | E47: 92.17 | F47: 10 | G47: 11060 | H47: =G47*3 -> 33180 | I47: =G47*0.25 -> 2765 | J47: 1.2 | K47: 2300
A48: 2 | B48: 2B2 | D48: 二层 | E48: 115.11 | F48: 10 | G48: 13813 | H48: 41439 | I48: 3453.25 | J48: 1.2 | K48: 2800
A49: 3 | B49: 2B3 | D49: 二层 | E49: 401.43 | F49: 10 | G49: 48172 | H49: 144516 | I49: 12043 | J49: 1.2 | K49: 10000
A50: 4 | B50: 2C4 | D50: 二层 | E50: 47.13 | F50: 10 | G50: 5656 | H50: 16968 | I50: 1414 | J50: 1.2 | K50: 1200
A51: 5 | B51: 2C5 | D51: 二层 | E51: 46.32 | F51: 10 | G51: 5558 | H51: 16674 | I51: 1389.5 | J51: 1.2 | K51: 1200
A52: 6 | B52: 2C6 | D52: 二层 | E52: 52.74 | F52: 10 | G52: 6329 | H52: 18987 | I52: 1582.25 | J52: 1.2 | K52: 1300
A53: 合计（6间） | E53: =SUM(E47:E52) -> 754.9 | G53: 90588 | I53: 22647 | K53: =SUM(K47:K52) -> 18800
A54: 注：装修期详见挂牌公告。
A55: C24028-5北港小区3间商铺三年租赁经营权项目明细表
A56: 序号 | B56: 门面 编号 | C56: 经营项目 | E56: 分层 | F56: 面积㎡ | G56: 价格 | H56: 年租金 | I56: 3年租金（元） | J56: 年租金25%押金（元） | K56: 物业费 （元/月/㎡） | L56: 交易保证金（元）
A58: 1 | B58: 二期A5 | C58: 按用途经营 | E58: 一层 二层 | F58: 286.76 | G58: 11.5 | H58: 39573 | I58: =H58*3 -> 118719 | J58: =H58*0.25 -> 9893.25 | K58: 1.2 | L58: 8000
A59: 2 | B59: 三期A18 | C59: 按用途经营 | E59: 一层 二层 | F59: 209.38 | G59: 22.5 | H59: 56533 | I59: 169599 | J59: 14133.25 | K59: 1.2 | L59: 12000
A60: 3 | B60: 三期B27 | C60: 按用途经营 | E60: 一层 二层 | F60: 301.3 | G60: 16 | H60: 57850 | I60: 173550 | J60: 14462.5 | K60: 1.2 | L60: 12000
A61: 合计（3间） | F61: 797.44 | H61: 153956 | L61: =SUM(L58:L60) -> 32000
A62: 注：装修期详见挂牌公告。
A63: C24028-6东港小区1间商铺三年租赁经营权项目明细表
A64: 序号 | B64: 门面编号 | C64: 经营项目 | D64: 分层 | E64: 面积㎡ | F64: 价格 | G64: 年租金 | H64: 3年租金（元） | I64: 年租金25%押金（元） | J64: 物业费 （元/月/㎡） | K64: 交易保证金（元）
A66: 1 | B66: A7 | C66: 按用途 经营 | D66: 一层 二层 | E66: 731.34 | F66: 20 | G66: 175522 | H66: 526566 | I66: 43881 | J66: 1.2 | K66: 36000
A67: 合计（1间） | E67: 731.34 | G67: 175522 | K67: 36000
A68: 注：装修期详见挂牌公告。
A69: C24028-7恒生国际3间商铺三年租赁经营权项目明细表
A70: 序号 | B70: 门面号 | C70: 经营项目 | D70: 楼层 | E70: 商铺面积（㎡） | F70: 价格（元） | G70: 年租金（元） | H70: 3年租金（元） | I70: 年租金25%押金（元） | J70: 物业费 （元/月/㎡） | K70: 交易保证金（元） | L70: 原租赁截止 时间
A71: 1 | B71: 109 | C71: 服装 | D71: 1 | E71: 138.19 | F71: 90 | G71: 149245 | H71: =G71*3 -> 447735 | I71: =G71*0.25 -> 37311.25 | J71: 1.2 | K71: 30000 | L71: 2024.1.31
A72: 2 | B72: 110 | C72: 服装 | D72: 1 | E72: 109.23 | F72: 90 | G72: 117968 | H72: 353904 | I72: 29492 | J72: 1.2 | K72: 25000 | L72: 2024.1.31
A73: 3 | B73: 111 | C73: 服装 | D73: 1 | E73: 131.15 | F73: 90 | G73: 141642 | H73: 424926 | I73: 35410.5 | J73: 1.2 | K73: 30000 | L73: 2024.1.31
A74: 合计（3间） | E74: 378.57 | G74: 408855 | K74: =SUM(K72:K73) -> 55000
A75: 注：装修期及优先租赁权详见挂牌公告。

Sheet Sheet1
